Cogmind - Beta 15 @@@ ROGUE MODE // 2025.07.10 @ 17:02:41 Player: GreyGoldFish Result: Destroyed by YI-UF0 with YI-UF0's Doublenader Performance ------------- Evolutions (0) 0 Regions Visited (2) 400 Robots Destroyed (31) 155 Value Destroyed (580) 580 Prototype IDs (2) 40 Alien Tech Used (0) 0 Bonus (0) 0 TOTAL SCORE: 1175 Bonus ------- None Cogmind --------- Core Integrity 0/250 Matter 274/300 Energy 72/100 System Corruption 1% Temperature Cool (25) Movement Core (450) Ox8 Location -10/Mines Parts ------- > --- POWER (1) -------- (None) > --- PROPULSION (2) --- (None) > --- UTILITY (2) ------ Large Storage Unit ECM Suite > --- WEAPON (2) ------- Light Cannon > --- INVENTORY (15) --- Ion Engine Light Treads Improved Heat Sink Huge Storage Unit High-capacity Matter Pod (200) Visual Processing Unit Signal Interpreter Improved Terrain Scanner Transport Network Coupler Targeting Computer Propulsion Shielding Light Armor Plating Tractor Beam Grenade Launcher Peak State ------------ > --- POWER ------------ Ion Engine > --- PROPULSION ------- Light Treads Light Treads > --- UTILITY ---------- Large Storage Unit ECM Suite > --- WEAPON ----------- Particle Gun Assault Rifle > --- INVENTORY -------- Ion Engine Light Treads Improved Heat Sink Huge Storage Unit High-capacity Matter Pod Visual Processing Unit Signal Interpreter Improved Terrain Scanner Transport Network Coupler Targeting Computer Light Armor Plating Tractor Beam Medium Laser Light Cannon Grenade Launcher [Rating: 10] Favorites ----------- Power Ion Engine Engine Ion Engine Propulsion Light Treads Treads Light Treads Utility Large Storage Unit Device ECM Suite Storage Large Storage Unit Weapon Assault Rifle Energy Gun Particle Gun Ballistic Gun Assault Rifle Ballistic Cannon Light Cannon Launcher Grenade Launcher Build | -11 -10 -10 ------- Run | Yrd Mat Min Slots Evolved . | . . . Power . | . . . Propulsion . | . . . Utility . | . . . Weapon . | . . . Parts Attached 17 | 9 8 . Power 2 | 1 1 . Engine 2 | 1 1 . Core . | . . . Reactor . | . . . Propulsion 3 | 2 1 . Treads 3 | 2 1 . Leg . | . . . Wheel . | . . . Hover . | . . . Flight . | . . . Utility 6 | 3 3 . Device 3 | 2 1 . Storage 3 | 1 2 . Processor . | . . . Hackware . | . . . Protection . | . . . Artifact . | . . . Weapon 6 | 3 3 . Energy Gun 2 | 1 1 . Energy Cannon . | . . . Ballistic Gun 2 | 2 . . Ballistic Cannon 1 | . 1 . Launcher 1 | . 1 . Special Weapon . | . . . Impact Weapon . | . . . Slashing Weapon . | . . . Piercing Weapon . | . . . Special Melee Weapon . | . . . Unidentified Prototypes . | . . . Parts Lost 5 | . . 5 Power 1 | . . 1 Propulsion 2 | . . 2 Utility . | . . . Weapon 2 | . . 2 Highest Loss Streak 5 | . . 5 To Critical Strikes . | . . . Average Backups 10 | 1 11 14 Power . | . . 1 Propulsion . | . . 1 Utility 7 | 1 7 11 Weapon 1 | . 1 1 Tool/Special . | . . . Unused Backups 15 | . 5 10 Power 2 | . 1 1 Propulsion . | . . . Utility 11 | . 2 9 Weapon 1 | . 1 . Tool/Special 1 | . 1 . Average Slot Usage (%) 99 | . 100 94 Engine 14 | . 14 14 Treads 27 | . 28 24 Device 14 | . 14 14 Storage 14 | . 14 14 Energy Gun 3 | . 2 12 Ballistic Gun 18 | . 18 14 Ballistic Cannon 6 | . 6 . Peak Build Rating 10 | 9 10 10 Average Rating 8 | 7 8 9 On Entrance 6 | . 9 10 Naked Turns . | . . . Heaviest Build 32 | 14 32 32 Greatest Support 40 | 40 40 40 Greatest Overweight (x) . | . . . Average Overweight (x) . | . . . Largest Inventory Capacity 20 | 8 20 15 Average Capacity 14 | 6 14 15 Most Carried 15 | 4 15 15 Average Carried 10 | 1 11 14 Final Capacity 15 | 8 15 15 Final Carried 15 | 3 15 14 Class Distribution -------------------- 100% | Mutant Dominant Class ---------------- Mutant | -10/Materials Mutant | -10/Mines Resources | -11 -10 -10 ----------- Run | Yrd Mat Min Matter Collected 1022 | 368 654 . Remotely 90 | 90 . . Salvage Created 861 | 218 643 . Parts 67 | 16 51 . Haulers Intercepted 1 | . 1 . Recyclers Shooed . | . . . Parts Field Recycled . | . . . Retrieved Matter . | . . . Parts Self-Destructed . | . . . Prevented . | . . . Kills | -11 -10 -10 ------- Run | Yrd Mat Min Combat Hostiles Destroyed 17 | . 17 . Guns 13 | . 13 . Cannons 4 | . 4 . Classes Destroyed 8 | 3 5 . Worker 3 | 2 1 . Tunneler 5 | 5 . . Hauler 1 | . 1 . Recycler 1 | 1 . . Operator 1 | . 1 . Watcher 3 | . 3 . Swarmer 6 | . 6 . Grunt 11 | . 11 . Best Kill Streak 7 | 5 7 . Combat Bots Only 5 | . 5 . Max Kills in Single Turn 2 | 2 2 . Gunslinging 1 | . 1 . Exploded . | . . . Melee . | . . . Uniques/NPCs Destroyed . | . . . Combat | -11 -10 -10 -------- Run | Yrd Mat Min Hostile Shots Fired 92 | . 66 26 Missed 28 | . 21 7 Hits 64 | . 45 19 Projectile 64 | . 45 19 AOE 22 | . . 22 Damage Taken 1157 | . 486 671 Core 270 | . 72 198 Absorbed by Shields . | . . . Core Remaining (%) 100 | 100 . . Volleys Fired 86 | 21 56 9 Largest 2 | 2 2 2 Hottest 85 | 60 85 85 Shots Fired 168 | 41 113 14 Gun 151 | 41 100 10 Cannon 16 | . 12 4 Launcher 1 | . 1 . Special . | . . . Kinetic 133 | 25 99 9 Thermal 34 | 16 13 5 Explosive 1 | . 1 . Electromagnetic . | . . . Robot Hit Streak 9 | 7 9 4 Robot Miss Streak 4 | 2 4 2 Penetration Max . | . . . Secondary Targets 2 | . 2 . Max Gunslinging Chain 1 | . 1 . Shots Hit Robots 97 | 24 65 8 Core Hits 50 | 9 38 3 Critical Kills . | . . . Critical Parts Destroyed . | . . . Critical Strikes 1 | . 1 . Blast 1 | . 1 . Melee Attacks . | . . . Impact . | . . . Slashing . | . . . Piercing . | . . . Sneak Attacks . | . . . Combat Hostiles . | . . . Follow-up Attacks . | . . . Damage Inflicted 1318 | 297 902 119 Guns 1092 | 297 708 87 Cannons 191 | . 159 32 Explosions 35 | . 35 . Melee . | . . . Ramming . | . . . Kinetic 998 | 205 725 68 Thermal 285 | 92 142 51 Explosive 35 | . 35 . Electromagnetic . | . . . Impact . | . . . Slashing . | . . . Piercing . | . . . Highest Corruption 1 | . 1 1 Average Corruption 1 | . 1 1 Corruption Purged . | . . . Corruption Blocked . | . . . Effects 13 | . 11 2 Matter Fused 2 | . 2 . Heat Flow Errors 3 | . 3 . Data Loss (minor) 6 | . 4 2 Data Loss (major) 1 | . 1 . Misfires 1 | . 1 . Overload Shots . | . . . Overflow Damage . | . . . Projectiles . | . . . Explosions . | . . . Melee . | . . . Knockbacks 5 | . 3 2 Impact . | . . . Kinetic 5 | . 3 2 Secondary . | . . . Self-Inflicted Damage . | . . . Shots . | . . . Rammed . | . . . Targets Rammed . | . . . Kicked . | . . . Crushed . | . . . Highest Temperature 353 | . 353 120 Average Temperature 76 | . 79 62 Received Heat Transfer 213 | . 213 . Siege Activations . | . . . Martial Activations . | . . . Shielding Activations . | . . . Robots Disrupted . | . . . Combat Hostiles . | . . . Robots Corrupted . | . . . Combat Hostiles . | . . . Parts Fried . | . . . Impact Corruptions . | . . . Robots Melted . | . . . Combat Hostiles . | . . . Parts Melted 1 | . 1 . Heat Transferred 681 | 200 370 111 Parts Sabotaged . | . . . Parts Stolen . | . . . Parts Stripped . | . . . Power Chain Reactions . | . . . Alert | -11 -10 -10 ------- Run | Yrd Mat Min Maximum Alert Level . | . . . Low Security (%) 100 | 100 100 100 Level 1 . | . . . Level 2 . | . . . Level 3 . | . . . Level 4 . | . . . Level 5 . | . . . High Security . | . . . Max Security . | . . . Peak Influence 103 | 10 103 20 Initial 20 | . . 20 Average 28 | 2 32 8 Influence Increases 523 | 40 483 . Destroy 0b10 Robot/C 340 | . 340 . Destroy 0b10 Robot/NC 70 | 40 30 . Destroy Leader 88 | . 88 . Successful Hack 7 | . 7 . Disable Machine 15 | . 15 . Destroy Structure 3 | . 3 . Influence Decreases 523 | 40 430 53 Entered New Map 33 | . . 33 Time Decay 490 | 40 430 20 Squads Dispatched 4 | . 4 . Investigation 1 | . 1 . Extermination . | . . . Reinforcement 3 | . 3 . Assault . | . . . Garrison . | . . . Intercept . | . . . Searches Triggered . | . . . Construction Impeded . | . . . Haulers Reinforced . | . . . Active Scanning Responses . | . . . Cargo Convoy Interrupts . | . . . Stealth | -11 -10 -10 --------- Run | Yrd Mat Min Distress Signals 3 | . 3 . Communications Jammed . | . . . Distress Signals . | . . . Times Spotted 36 | . 34 2 Peak Tracking Total 4 | . 4 1 Tactical Retreats 5 | . 4 1 Traps | -11 -10 -10 ------- Run | Yrd Mat Min Traps Triggered 1 | . 1 . Indirectly . | . . . Trap Hack Attempts . | . . . Triggered . | . . . Disarmed . | . . . Reprogrammed . | . . . Reused . | . . . Traps Extracted . | . . . Installed . | . . . Triggered . | . . . Machines | -11 -10 -10 ---------- Run | Yrd Mat Min Machines Disabled 1 | . 1 . Max in Single Turn 1 | . 1 . Machines Repaired . | . . . Machines Dismantled . | . . . Machines Sabotaged . | . . . Overloaded Fab Kills . | . . . Hacking | -11 -10 -10 --------- Run | Yrd Mat Min Machines Accessed 8 | . 8 . Terminals 5 | . 5 . Fabricators . | . . . Repair Stations 1 | . 1 . Recycling Units 2 | . 2 . Scanalyzers . | . . . Garrison Access . | . . . Total Hacks 19 | . 19 . Successful 13 | . 13 . Failed 6 | . 6 . Catastrophic 1 | . 1 . Database Lockouts . | . . . Manual . | . . . Terminals 14 | . 14 . Fabricators . | . . . Repair Stations 3 | . 3 . Recycling Units 2 | . 2 . Scanalyzers . | . . . Garrison Access . | . . . Terminal Hacks 10 | . 10 . Record 5 | . 5 . Prototype ID Bank 1 | . 1 . Branch Access Points 1 | . 1 . Locate Traps 2 | . 2 . Maintenance Status 1 | . 1 . Fabricator Hacks . | . . . Repair Station Hacks 1 | . 1 . Scan Component 1 | . 1 . Recycling Unit Hacks 2 | . 2 . Report Inventory 2 | . 2 . Scanalyzer . | . . . Garrison Access Hacks . | . . . Unauthorized Hacks . | . . . Terminals . | . . . Fabricators . | . . . Repair Stations . | . . . Recycling Units . | . . . Scanalyzers . | . . . Garrison Access . | . . . Data Cores Recovered 1 | . 1 . Used . | . . . Hacking Detections 3 | . 3 . Full Trace Events 2 | . 2 . Feedback Events 1 | . 1 . Corruption 1 | . 1 . Feedback Blocked . | . . . Robot Schematics Acquired . | . . . Robots Built . | . . . Authchips . | . . . Time . | . . . Total Robot Build Rating . | . . . Part Schematics Acquired . | . . . Parts Built . | . . . Authchips . | . . . Time . | . . . Total Part Build Rating . | . . . Parts Repaired . | . . . Time . | . . . Parts Recycled . | . . . Recycled Matter . | . . . Retrieved Matter . | . . . Retrieved Components . | . . . Parts Scanalyzed . | . . . Part Schematics Acquired . | . . . Parts Damaged . | . . . Bothacking | -11 -10 -10 ------------ Run | Yrd Mat Min Used RIF Installer . | . . . Robots Hacked . | . . . Non-combat . | . . . Combat . | . . . Robot Hacks Applied . | . . . Relay Couplers Released . | . . . Fabnet Peak Effective % . | . . . Robots Rewired . | . . . Allies Hacked . | . . . Hacks Repelled . | . . . Allies | -11 -10 -10 -------- Run | Yrd Mat Min Total Allies . | . . . Largest Group . | . . . Highest-Rated Group . | . . . Highest-Rated Ally . | . . . Total Orders . | . . . Ally Attacks . | . . . Total Damage . | . . . Kills . | . . . Allies Corrupted . | . . . Allies Melted . | . . . Intel | -11 -10 -10 ------- Run | Yrd Mat Min Active Infowar (turns) 2011 | 162 1778 71 Terrain 390 | 162 228 . ECM 1621 | . 1550 71 Robot Analysis Total . | . . . Derelict Logs Recovered . | . . . Drone Launches . | . . . Drone Recoveries . | . . . Exploration | -11 -10 -10 ------------- Run | Yrd Mat Min Turns Passed 2078 | 229 1778 71 Spaces Moved 1033 | 96 912 25 Core 6 | 6 . . Treads 1027 | 90 912 25 Legs . | . . . Wheels . | . . . Hover . | . . . Flight . | . . . Fastest Speed 50 | 50 160 160 Average Speed 159 | 153 160 160 Slowest Speed 160 | 160 160 160 Overloaded Moves . | . . . Propulsion Burnouts . | . . . Robots Hopped . | . . . Potential Cave-ins . | . . . Cave-ins Triggered . | . . . Exploration Rate (%) 39 | 5 99 14 Regions Visited 2 Branch Regions 1 Pre-discovered Areas . | . . . Known Exits Taken 1 | . 1 . Unknown Exits Taken 1 | 1 . . Scrap Searched . | . . . Spaces Dug . | . . . Terrain Destroyed 2 | . 2 . Melee . | . . . Projectile . | . . . AOE 2 | . 2 . Terrain Rammed . | . . . Walls Destroyed . | . . . Machines Disabled . | . . . Actions | -11 -10 -10 --------- Run | Yrd Mat Min Total 1306 | 138 1125 43 Wait 124 | . 116 8 Move 1031 | 95 911 25 Hop . | . . . Pick Up 32 | 10 22 . Fast Attach . | . . . Attach 11 | 9 1 1 Detach 2 | 2 . . Swap 10 | 1 9 . Drop 10 | . 10 . Fire 86 | 21 56 9 Melee . | . . . Ram . | . . . Kick . | . . . Crush . | . . . Escape Stasis . | . . . Rewire . | . . . Trap . | . . . Miscellaneous . | . . . Route ------- -11/Scrapyard -10/Materials (discovered 5 exits: [*Mat x3] / *Min / [*Sub]) -10/Mines History --------- Turn | Location | Event 33 | -11/Scrapyard | Discovered new exit (range 15) 230 | -11/Scrapyard | Entered Materials 302 | -10/Materials | Identified exit to Mines 307 | -10/Materials | Build established: Mutant 490 | -10/Materials | Discovered new exit (range 9) 1032 | -10/Materials | Discovered new exit (range 4) 1344 | -10/Materials | Discovered new exit (range 10) 1374 | -10/Materials | Discovered new exit (range 16) 2008 | -10/Materials | Entered Mines 2064 | -10/Mines | Core integrity fell below 50% 2076 | -10/Mines | Core integrity fell below 20% 2079 | -10/Mines | Destroyed by YI-UF0 with YI-UF0's Doublenader Last Messages --------------- 02068_ U-05 Engineer lays Concrete. 02069_ YI-UF0 mumbles something. 02069_ The unstable cave ceiling collapses. 02069_ U-05 Engineer lays Concrete. 02069_ Lgt. Treads destroyed. 02069_ Particle Gun destroyed. 02070_ The unstable cave ceiling collapses. 02070_ U-05 Engineer lays Concrete. 02071_ Assault Rifle destroyed. 02071_ Ion Engine destroyed. 02071_ U-05 Engineer lays Concrete. 02072_ YI-UF0 knocked back. 02073_ The unstable cave ceiling collapses. 02073_ U-05 Engineer lays Concrete. 02074_ YI-UF0 knocked back. 02075_ U-05 Engineer lays Concrete. 02076_ The unstable cave ceiling collapses. 02076_ U-05 Engineer lays Concrete. 02079_ The unstable cave ceiling collapses. 02079_ U-05 Engineer lays Concrete. Map ----- +----------------------------------------------------+ | ?????????????????????????????????????????????????? | | ?????????????????????????????????????????????????? | | ?????????????????????????????????????????????????? | | ?????????????????????????????????????????????????? | | ?????????????????????????????????????????????????? | | ?????????????????????????????????????????????????? | | ?????????????????????????????????????????????????? | | ?????????????????????????????????????????????????? | | ?????????????????????????????????????????????????? | | ?????????????????????????????????????????????????? | | ?????????????????????????????????????????????????? | | ?????????????????????????????????????????????????? | | ???????????????????????????????###???????????????? | | ??????????????????????????????? #???????????????? | | ??????????????? ???????????????# #??????????#??#?? | | ?????????????? ? ??????????????# #????????? ## ### | | ??????????????? ? ?????????????# #????????# | | ???????????????? ? ????????????# #####???# | | ????????????????? ? ?????????## #### | | ??????????????????## ???##### # | | ??????????????????? ### #? | | ???????????????????? # ### ## #? | | ?????????????????????# #????# #??? #? | | ?????????????### r ### #????# #????? #? | | ????????????# [ % #???## #???????#? | | ????????????# * g @ #??## ###??????? | | ?????????????????# % #??# ##?????? | | ?????????????????## #??# #?????? | | ??????????????????# #??# ??? | | ??????????????????# u # #??# !!!! #? | | ??????????????????# #? #??## !!! #? | | ??????????????????## #####?? ??## ! !! #? | | ???????????????????## #####???????? ??## ! ! #? | | ????????????????????# ?????????????? #?# #? | | ????????????????????#??????????????????####### #? | | ?????????????????????????????????????????????? #? | | ??????????????????????????????????????????????? #? | | ??????????????????????????????????????????????? #? | | ???????????????????????????????????????????????? ? | | ????????????????????????????????????????????????? | | ?????????????????????????????????????????????????? | | ?????????????????????????????????????????????????? | | ?????????????????????????????????????????????????? | | ?????????????????????????????????????????????????? | | ?????????????????????????????????????????????????? | | ?????????????????????????????????????????????????? | | ?????????????????????????????????????????????????? | | ?????????????????????????????????????????????????? | | ?????????????????????????????????????????????????? | | ?????????????????????????????????????????????????? | +----------------------------------------------------+ Best States ------------- Heat Dissipation 25 Energy Generation 10 Energy Capacity 250 Matter Stores 300 Matter Capacity 300 Sight Range 16 Terrain Scan Range 16 Terrain Scan Density 10 ECM Strength 1 Evasion (%) 40 Recoil Reduction 2 Item Schematics ----------------- None Robot Schematics ------------------ None Fabricated ------------ Nothing Repaired ---------- Nothing Alien Tech Used ----------------- None Achievements -------------- None Challenges ------------ None Game ------ Seed ConcussiveGreatNullifier Manual? 0 Play Time 00:22:10 Cumulative 11.5 hours Start 2025.07.10 @ 16:38:14 End 2025.07.10 @ 17:02:41 Sessions 3 Manual Loads 0 Difficulty Rogue Special Mode None Game No. 21 Rogue 21 Adventurer 0 Explorer 0 Win Type - Total 0 Types 0/0/0/0/0/0/0/0/0/0 Lore% 10 Gallery% 16 Achievement% 16 Wizard Run 0 Options --------- Layout 2 ASCII 0 Keyboard 0 Movement Mouse Keybinds 0 Fullscreen 1 Font 24/Smallcaps Map View 50x44 Zoom Use 0% Tactical HUD 1 Map Filters NONE Filters NONE Steam 1 RUN: eec18053-ee5e-4c65-a268-20a12149ae15